{"text_format":"1","workbook":"xlsx","n_sheets":1,"sheets":["Table 1"],"not_rendered":{"charts":0,"images":0,"macros":1,"external_links":0,"defined_names":1,"comments":1,"pivot_tables":0},"unopened":[],"bounds":{"document_bytes":16777216,"sheet_cells":100000,"rows_first":2000,"rows_last":500,"rows_between":2000,"halvings":0,"cell_chars":16384,"cell_head_chars":4096},"cells_cut":0,"cells_raw":0,"read":"whole","date_system":"1900"}

{"sheet":"Table 1","index":0,"n_rows":333,"n_cols":12,"rows_kept":333,"cut":false,"hidden":false,"merged":[]}
["Sort.","StNr.","Name","Vorname","Verein","Jg.","Alter","Geschl.","Klasse","Landesverband","Homepage"]
[1,1,"Konrad","Josef","LG Baar",1948,{"$f":"2016-F2","v":68},"m","M65","BA",{"$f":"HYPERLINK(myHyperlink(D2))","v":"http://ladv.de/leistungsdatenbank/athletenprofil/68481/Josef-Konrad.htm"}]
[2,2,"Bornbaum","Helmut","LV Biet",1969,47,"m","M45","BA",{"$f":"HYPERLINK(myHyperlink(D3))","v":""}]
[3,300,"Möller","Anuschka","LC Breisgau",1994,22,"w","WU23","BA",{"$f":"HYPERLINK(myHyperlink(D4))","v":"http://ladv.de/leistungsdatenbank/athletenprofil/88150/Anuschka-M%C3%B6ller.htm"}]
[4,301,"Abel","Svenja","LC Breisgau",1983,33,"w","F","BA",{"$f":"HYPERLINK(myHyperlink(D5))","v":"http://ladv.de/leistungsdatenbank/athletenprofil/235364/Svenja-Abel.htm"}]
[5,3,"Orth","Michael","TSG Bruchsal",1970,46,"m","M45","BA",{"$f":"HYPERLINK(myHyperlink(D6))","v":""}]
[6,4,"Podschwadt","Oliver","TSG Bruchsal",1967,49,"m","M45","BA",{"$f":"HYPERLINK(myHyperlink(D7))","v":"http://ladv.de/leistungsdatenbank/athletenprofil/268769/Oliver-Podschwadt.htm"}]
[7,5,"Rieger","Holger","TSG Bruchsal",1971,45,"m","M45","BA",{"$f":"HYPERLINK(myHyperlink(D8))","v":""}]
[8,302,"Dobmeier","Luise","TSG Bruchsal",1988,28,"w","F","BA",{"$f":"HYPERLINK(myHyperlink(D9))","v":"http://ladv.de/leistungsdatenbank/athletenprofil/265647/Luise-Dobmeier.htm"}]
[9,6,"Schurig","Carl","PTSV Jahn Freiburg",1997,19,"m","MU23","BA",{"$f":"HYPERLINK(myHyperlink(D10))","v":"http://ladv.de/leistungsdatenbank/athletenprofil/152883/Carl-Schurig.htm"}]
[10,7,"Hahn","Domenik","TV 1880 Huchenfeld",1997,19,"m","MU23","BA",{"$f":"HYPERLINK(myHyperlink(D11))","v":"http://ladv.de/leistungsdatenbank/athletenprofil/72596/Domenik-Hahn.htm"}]
[11,8,"Klein","Joshua","LG Region Karlsruhe",1997,19,"m","MU23","BA",{"$f":"HYPERLINK(myHyperlink(D12))","v":"http://ladv.de/leistungsdatenbank/athletenprofil/192095/Joshua-Klein.htm"}]
[12,9,"Hilpert","Patrick","LG Region Karlsruhe",1983,33,"m","M","BA",{"$f":"HYPERLINK(myHyperlink(D13))","v":"http://ladv.de/leistungsdatenbank/athletenprofil/271482/Patrick-Hilpert.htm"}]
[13,10,"Unewisse","Frederik","LG Region Karlsruhe",1993,23,"m","M","BA",{"$f":"HYPERLINK(myHyperlink(D14))","v":"http://ladv.de/leistungsdatenbank/athletenprofil/74158/Frederik-Unewisse.htm"}]
[14,11,"Sickinger","Joshua","LG Region Karlsruhe",1993,23,"m","M","BA",{"$f":"HYPERLINK(myHyperlink(D15))","v":"http://ladv.de/leistungsdatenbank/athletenprofil/69534/Joshua-Sickinger.htm"}]
[15,12,"Bittigkoffer","Lucas","LG Region Karlsruhe",1992,24,"m","M","BA",{"$f":"HYPERLINK(myHyperlink(D16))","v":"http://ladv.de/leistungsdatenbank/athletenprofil/68214/Lucas-Bittigkoffer.htm"}]
[16,303,"Pfeifer","Franziska","LG Region Karlsruhe",1990,26,"w","F","BA",{"$f":"HYPERLINK(myHyperlink(D17))","v":"http://ladv.de/leistungsdatenbank/athletenprofil/249965/Franziska-Pfeifer.htm"}]
[17,304,"Gempper","Verena","LG Region Karlsruhe",1990,26,"w","F","BA",{"$f":"HYPERLINK(myHyperlink(D18))","v":"http://ladv.de/leistungsdatenbank/athletenprofil/96676/Verena-Gempper.htm"}]
[18,305,"Tränkle","Melina","LG Region Karlsruhe",1992,24,"w","F","BA",{"$f":"HYPERLINK(myHyperlink(D19))","v":"http://ladv.de/leistungsdatenbank/athletenprofil/122597/Melina-Tr%C3%A4nkle.htm"}]
[19,306,"Schweizer","Christine","LG Region Karlsruhe",1966,50,"w","W50","BA",{"$f":"HYPERLINK(myHyperlink(D20))","v":"http://ladv.de/leistungsdatenbank/athletenprofil/142038/Christine-Schweizer.htm"}]
[20,13,"Fritz","Eberhard","LG Ortenau Nord",1953,63,"m","M60","BA",{"$f":"HYPERLINK(myHyperlink(D21))","v":"http://ladv.de/leistungsdatenbank/athletenprofil/138547/Eberhard-Fritz.htm"}]
[21,14,"Okle","Stephan","SV Reichenau",1987,29,"m","M","BA",{"$f":"HYPERLINK(myHyperlink(D22))","v":"http://ladv.de/leistungsdatenbank/athletenprofil/75232/Stephan-Okle.htm"}]
[22,15,"Ziganke","Jens","SV Reichenau",1988,28,"m","M","BA",{"$f":"HYPERLINK(myHyperlink(D23))","v":"http://ladv.de/leistungsdatenbank/athletenprofil/235403/Jens-Ziganke.htm"}]
[23,16,"Decker","Wolfgang","TV 1893 Rheinau",1944,72,"m","M70","BA",{"$f":"HYPERLINK(myHyperlink(D24))","v":"http://ladv.de/leistungsdatenbank/athletenprofil/144924/Wolfgang-Decker.htm"}]
[24,307,"Hebding","Marion","TV 1893 Rheinau",1968,48,"w","W45","BA",{"$f":"HYPERLINK(myHyperlink(D25))","v":"http://ladv.de/leistungsdatenbank/athletenprofil/67905/Marion-Hebding.htm"}]
[25,308,"Walker","Helga","TV 1893 Rheinau",1941,75,"w","W75","BA",{"$f":"HYPERLINK(myHyperlink(D26))","v":"http://ladv.de/leistungsdatenbank/athletenprofil/69720/Helga-Walker.htm"}]
[26,309,"Kaskel","Jeannine","TV Bad Säckingen",1977,39,"w","W35","BA",{"$f":"HYPERLINK(myHyperlink(D27))","v":"http://ladv.de/leistungsdatenbank/athletenprofil/101160/Jeannine-Kaskel.htm"}]
[27,17,"Broß","Werner","TV Sinsheim 1861",1939,77,"m","M75","BA",{"$f":"HYPERLINK(myHyperlink(D28))","v":"http://ladv.de/leistungsdatenbank/athletenprofil/242167/Werner-Bro%C3%9F.htm"}]
[28,18,"Vetter","Albert-Eugen","LT Unterkirnach",1954,62,"m","M60","BA",{"$f":"HYPERLINK(myHyperlink(D29))","v":"http://ladv.de/leistungsdatenbank/athletenprofil/152258/Albert-Eugen-Vetter.htm"}]
[29,310,"Köngeter","Katrin","LT Unterkirnach",1995,21,"w","WU23","BA",{"$f":"HYPERLINK(myHyperlink(D30))","v":"http://ladv.de/leistungsdatenbank/athletenprofil/152881/Katrin-K%C3%B6ngeter.htm"}]
[30,311,"Ganter","Elfriede","LT Unterkirnach",1953,63,"w","W60","BA",{"$f":"HYPERLINK(myHyperlink(D31))","v":"http://ladv.de/leistungsdatenbank/athletenprofil/144618/Elfriede-Ganter.htm"}]
[31,312,"Beer","Jasmin","Kimbia",1998,18,"w","WU23","BB",{"$f":"HYPERLINK(myHyperlink(D32))","v":""}]
[32,19,"Kollhammer","Dieter","LC Marathonia Berlin",1946,70,"m","M70","BE",{"$f":"HYPERLINK(myHyperlink(D33))","v":""}]
[33,20,"Hartl","Rudolf","LC Aichach",1953,63,"m","M60","BY",{"$f":"HYPERLINK(myHyperlink(D34))","v":""}]
[34,313,"Auer","Barbara","TG Viktoria Augsburg",1963,53,"w","W50","BY",{"$f":"HYPERLINK(myHyperlink(D35))","v":"http://ladv.de/leistungsdatenbank/athletenprofil/30147/Barbara-Auer.htm"}]
[35,21,"Karl","Daniel","SV Bergdorf-Höhn",1984,32,"m","M","BY",{"$f":"HYPERLINK(myHyperlink(D36))","v":"http://ladv.de/leistungsdatenbank/athletenprofil/38749/Daniel-Karl.htm"}]
[36,22,"Neuwald","Andreas","SV Bergdorf-Höhn",1965,51,"m","M50","BY",{"$f":"HYPERLINK(myHyperlink(D37))","v":"http://ladv.de/leistungsdatenbank/athletenprofil/35860/Andreas-Neuwald.htm"}]
[37,23,"Handel","Karl-Heinz","TV Bad Brückenau",1956,60,"m","M60","BY",{"$f":"HYPERLINK(myHyperlink(D38))","v":"http://ladv.de/leistungsdatenbank/athletenprofil/24815/Karl-Heinz-Handel.htm"}]
[38,24,"Wagner","Hans","TV Bad Brückenau",1955,61,"m","M60","BY",{"$f":"HYPERLINK(myHyperlink(D39))","v":"http://ladv.de/leistungsdatenbank/athletenprofil/32153/Hans-Wagner.htm"}]
[39,25,"Dormann","Manfred","TV Bad Brückenau",1950,66,"m","M65","BY",{"$f":"HYPERLINK(myHyperlink(D40))","v":"http://ladv.de/leistungsdatenbank/athletenprofil/27151/Manfred-Dormann.htm"}]
[40,26,"Katib","Joseph","LAC Quelle Fürth",1982,34,"m","M","BY",{"$f":"HYPERLINK(myHyperlink(D41))","v":"http://ladv.de/leistungsdatenbank/athletenprofil/26354/Joseph-Katib.htm"}]
[41,27,"Day","Björn","LAC Quelle Fürth",1983,33,"m","M","BY",{"$f":"HYPERLINK(myHyperlink(D42))","v":""}]
[42,28,"Seboka","Mitku","LAC Quelle Fürth",1988,28,"m","M","BY",{"$f":"HYPERLINK(myHyperlink(D43))","v":"http://ladv.de/leistungsdatenbank/athletenprofil/117553/Mitku-Seboka.htm"}]
[43,29,"Loch","Eike","LAC Quelle Fürth",1967,49,"m","M45","BY",{"$f":"HYPERLINK(myHyperlink(D44))","v":"http://ladv.de/leistungsdatenbank/athletenprofil/115966/Eike-Loch.htm"}]
[44,314,"Kadner","Hannah","LAC Quelle Fürth",1996,20,"w","WU23","BY",{"$f":"HYPERLINK(myHyperlink(D45))","v":"http://ladv.de/leistungsdatenbank/athletenprofil/90033/Hannah-Kadner.htm"}]
[45,315,"Mayer","Domenika","LAC Quelle Fürth",1990,26,"w","F","BY",{"$f":"HYPERLINK(myHyperlink(D46))","v":"http://ladv.de/leistungsdatenbank/athletenprofil/143333/Domenika-Mayer.htm"}]
[46,316,"Ramsauer","Christine","LAC Quelle Fürth",1968,48,"w","W45","BY",{"$f":"HYPERLINK(myHyperlink(D47))","v":"http://ladv.de/leistungsdatenbank/athletenprofil/38520/Christine-Ramsauer.htm"}]
[47,317,"Kolesa","Gerlinde","MTV 1881 Ingolstadt",1954,62,"w","W60","BY",{"$f":"HYPERLINK(myHyperlink(D48))","v":"http://ladv.de/leistungsdatenbank/athletenprofil/28782/Gerlinde-Kolesa.htm"}]
[48,30,"Geuß","Klaus","SC Kemmern",1965,51,"m","M50","BY",{"$f":"HYPERLINK(myHyperlink(D49))","v":"http://ladv.de/leistungsdatenbank/athletenprofil/32120/Klaus-Geu%C3%9F.htm"}]
[49,318,"Flurschütz","Elvira","SC Kemmern",1989,27,"w","F","BY",{"$f":"HYPERLINK(myHyperlink(D50))","v":"http://ladv.de/leistungsdatenbank/athletenprofil/62396/Elvira-Flursch%C3%BCtz.htm"}]
[50,319,"Geuß","Christine","SC Kemmern",1966,50,"w","W50","BY",{"$f":"HYPERLINK(myHyperlink(D51))","v":"http://ladv.de/leistungsdatenbank/athletenprofil/67188/Christine-Geu%C3%9F.htm"}]
[51,320,"Högl","Regina","LG Region Landshut",1993,23,"w","F","BY",{"$f":"HYPERLINK(myHyperlink(D52))","v":"http://ladv.de/leistungsdatenbank/athletenprofil/31237/Regina-H%C3%B6gl.htm"}]
[52,31,"Stützel","Simon","Team Memmert",1986,30,"m","M","BY",{"$f":"HYPERLINK(myHyperlink(D53))","v":"http://ladv.de/leistungsdatenbank/athletenprofil/191427/Simon-St%C3%BCtzel.htm"}]
[53,32,"Straßner","Andreas","Team Memmert",1979,37,"m","M35","BY",{"$f":"HYPERLINK(myHyperlink(D54))","v":"http://ladv.de/leistungsdatenbank/athletenprofil/24849/Andreas-Stra%C3%9Fner.htm"}]
[54,321,"Sachs","Christine","LG Mettenheim",1957,59,"w","W55","BY",{"$f":"HYPERLINK(myHyperlink(D55))","v":"http://ladv.de/leistungsdatenbank/athletenprofil/270189/Christine-Sachs.htm"}]
[55,33,"Pasztor","Florian","LG Stadtwerke München",1983,33,"m","M","BY",{"$f":"HYPERLINK(myHyperlink(D56))","v":"http://ladv.de/leistungsdatenbank/athletenprofil/123157/Florian-Pasztor.htm"}]
[56,34,"Walter","Michael","LG Stadtwerke München",1990,26,"m","M","BY",{"$f":"HYPERLINK(myHyperlink(D57))","v":"http://ladv.de/leistungsdatenbank/athletenprofil/266825/Michael-Walter.htm"}]
[57,35,"Meingast","Maximilian","LG Stadtwerke München",1986,30,"m","M","BY",{"$f":"HYPERLINK(myHyperlink(D58))","v":""}]
[58,36,"Burkert","Steffen","LG Stadtwerke München",1992,24,"m","M","BY",{"$f":"HYPERLINK(myHyperlink(D59))","v":""}]
[59,37,"Hillebrand","Johannes","LG Stadtwerke München",1979,37,"m","M35","BY",{"$f":"HYPERLINK(myHyperlink(D60))","v":"http://ladv.de/leistungsdatenbank/athletenprofil/28096/Johannes-Hillebrand.htm"}]
[60,322,"Mensing","Felicitas","LG Stadtwerke München",1984,32,"w","F","BY",{"$f":"HYPERLINK(myHyperlink(D61))","v":"http://ladv.de/leistungsdatenbank/athletenprofil/151100/Felicitas-Mensing.htm"}]
[61,323,"Doerries","Carola","LG Stadtwerke München",1993,23,"w","F","BY",{"$f":"HYPERLINK(myHyperlink(D62))","v":""}]
[62,324,"Meyer","Bianca","LG Stadtwerke München",1974,42,"w","W40","BY",{"$f":"HYPERLINK(myHyperlink(D63))","v":"http://ladv.de/leistungsdatenbank/athletenprofil/54113/Bianca-Meyer.htm"}]
[63,325,"Schlager","Ruth","TSV Neustadt",1942,74,"w","W70","BY",{"$f":"HYPERLINK(myHyperlink(D64))","v":"http://ladv.de/leistungsdatenbank/athletenprofil/99183/Ruth-Schlager.htm"}]
[64,38,"Schreindl","Tobias","LG Passau",1988,28,"m","M","BY",{"$f":"HYPERLINK(myHyperlink(D65))","v":"http://ladv.de/leistungsdatenbank/athletenprofil/28651/Tobias-Schreindl.htm"}]
[65,39,"Gonzalez","Giovani","LG Passau",1982,{"$f":"2016-F66","v":34},"m","M","BY",{"$f":"HYPERLINK(myHyperlink(D66))","v":"http://ladv.de/leistungsdatenbank/athletenprofil/123159/Giovani-Gonzalez-Popoca.htm"}]
[66,40,"Bscheidl","Marco","LG Passau",1980,36,"m","M35","BY",{"$f":"HYPERLINK(myHyperlink(D67))","v":"http://ladv.de/leistungsdatenbank/athletenprofil/24451/Marco-Bscheidl.htm"}]
[67,41,"Sellner","Alexander","LG Passau",1971,45,"m","M45","BY",{"$f":"HYPERLINK(myHyperlink(D68))","v":"http://ladv.de/leistungsdatenbank/athletenprofil/31626/Alexander-Sellner.htm"}]
[68,42,"Brennauer","Markus","TSV Penzberg",1980,36,"m","M35","BY",{"$f":"HYPERLINK(myHyperlink(D69))","v":"http://ladv.de/leistungsdatenbank/athletenprofil/24388/Markus-Brennauer.htm"}]
[69,43,"Mann","Hugo","TSV Penzberg",1954,62,"m","M60","BY",{"$f":"HYPERLINK(myHyperlink(D70))","v":"http://ladv.de/leistungsdatenbank/athletenprofil/143329/Hugo-Mann.htm"}]
[70,44,"Ramdane","Tim","LG TELIS FINANZ Regensburg",1994,22,"m","MU23","BY",{"$f":"HYPERLINK(myHyperlink(D71))","v":"http://ladv.de/leistungsdatenbank/athletenprofil/191423/Tim-Ramdane-Cherif.htm"}]
[71,45,"Matysik","Nico","LG TELIS FINANZ Regensburg",1995,21,"m","MU23","BY",{"$f":"HYPERLINK(myHyperlink(D72))","v":"http://ladv.de/leistungsdatenbank/athletenprofil/270216/Nico-Matysik.htm"}]
[72,46,"Blum","Tobias","LG TELIS FINANZ Regensburg",1995,21,"m","MU23","BY",{"$f":"HYPERLINK(myHyperlink(D73))","v":"http://ladv.de/leistungsdatenbank/athletenprofil/270203/Tobias-Blum.htm"}]
[73,47,"Stich","Kilian","LG TELIS FINANZ Regensburg",1996,20,"m","MU23","BY",{"$f":"HYPERLINK(myHyperlink(D74))","v":"http://ladv.de/leistungsdatenbank/athletenprofil/34698/Kilian-Stich.htm"}]
[74,48,"Viehbeck","Sebastian","LG TELIS FINANZ Regensburg",1995,21,"m","MU23","BY",{"$f":"HYPERLINK(myHyperlink(D75))","v":"http://ladv.de/leistungsdatenbank/athletenprofil/35864/Sebastian-Viehbeck.htm"}]
[75,49,"Pflieger","Philipp","LG TELIS FINANZ Regensburg",1987,29,"m","M","BY",{"$f":"HYPERLINK(myHyperlink(D76))","v":"http://ladv.de/leistungsdatenbank/athletenprofil/34329/Philipp-Pflieger.htm"}]
[76,50,"Koller","Jonas","LG TELIS FINANZ Regensburg",1993,23,"m","M","BY",{"$f":"HYPERLINK(myHyperlink(D77))","v":"http://ladv.de/leistungsdatenbank/athletenprofil/34964/Jonas-Koller.htm"}]
[77,51,"Unterholzner","Valentin","LG TELIS FINANZ Regensburg",1992,24,"m","M","BY",{"$f":"HYPERLINK(myHyperlink(D78))","v":"http://ladv.de/leistungsdatenbank/athletenprofil/31187/Valentin-Unterholzner.htm"}]
[78,326,"Parisek","Mira","LG TELIS FINANZ Regensburg",1996,20,"w","WU23","BY",{"$f":"HYPERLINK(myHyperlink(D79))","v":"http://ladv.de/leistungsdatenbank/athletenprofil/38337/Mira-Parisek.htm"}]
[79,327,"Plinke","Anna-Katharina","LG TELIS FINANZ Regensburg",1988,28,"w","F","BY",{"$f":"HYPERLINK(myHyperlink(D80))","v":"http://ladv.de/leistungsdatenbank/athletenprofil/34328/Anna-Katharina-Plinke.htm"}]
[80,328,"Heuberger","Sarah","LG TELIS FINANZ Regensburg",1989,27,"w","F","BY",{"$f":"HYPERLINK(myHyperlink(D81))","v":"http://ladv.de/leistungsdatenbank/athletenprofil/267666/Sarah-Heuberger.htm"}]
[81,329,"Boschan","Luisa","LG TELIS FINANZ Regensburg",1993,23,"w","F","BY",{"$f":"HYPERLINK(myHyperlink(D82))","v":"http://ladv.de/leistungsdatenbank/athletenprofil/270204/Luisa-Boschan.htm"}]
[82,330,"Rausch","Monika","LG TELIS FINANZ Regensburg",1990,26,"w","F","BY",{"$f":"HYPERLINK(myHyperlink(D83))","v":"http://ladv.de/leistungsdatenbank/athletenprofil/90995/Monika-Rausch.htm"}]
[83,331,"Aehling","Carolin","LG TELIS FINANZ Regensburg",1989,27,"w","F","BY",{"$f":"HYPERLINK(myHyperlink(D84))","v":"http://ladv.de/leistungsdatenbank/athletenprofil/118884/Carolin-Aehling.htm"}]
[84,332,"Galuschka","Julia","LG TELIS FINANZ Regensburg",1979,37,"w","W35","BY",{"$f":"HYPERLINK(myHyperlink(D85))","v":"http://ladv.de/leistungsdatenbank/athletenprofil/119145/Julia-Galuschka.htm"}]
[85,52,"Schröpf","Jürgen","SWC Regensburg",1972,44,"m","M40","BY",{"$f":"HYPERLINK(myHyperlink(D86))","v":"http://ladv.de/leistungsdatenbank/athletenprofil/27481/J%C3%BCrgen-Schr%C3%B6pf.htm"}]
[86,53,"Schöberl","Bernhard","SWC Regensburg",1976,40,"m","M40","BY",{"$f":"HYPERLINK(myHyperlink(D87))","v":"http://ladv.de/leistungsdatenbank/athletenprofil/274656/Bernhard-Sch%C3%B6berl.htm"}]
[87,54,"Salzberger","Rudolf","SWC Regensburg",1969,47,"m","M45","BY",{"$f":"HYPERLINK(myHyperlink(D88))","v":"http://ladv.de/leistungsdatenbank/athletenprofil/25883/Rudolf-Salzberger.htm"}]
[88,55,"Marohn","Thomas","SWC Regensburg",1964,52,"m","M50","BY",{"$f":"HYPERLINK(myHyperlink(D89))","v":"http://ladv.de/leistungsdatenbank/athletenprofil/24614/Thomas-Marohn.htm"}]
[89,56,"Federsel","Thomas","SWC Regensburg",1963,53,"m","M50","BY",{"$f":"HYPERLINK(myHyperlink(D90))","v":"http://ladv.de/leistungsdatenbank/athletenprofil/64565/Thomas-Federsel.htm"}]
[90,57,"Noell","Thomas","SWC Regensburg",1965,51,"m","M50","BY",{"$f":"HYPERLINK(myHyperlink(D91))","v":"http://ladv.de/leistungsdatenbank/athletenprofil/25740/Thomas-Noell.htm"}]
[91,58,"Wolfarth","Christian","SWC Regensburg",1966,50,"m","M50","BY",{"$f":"HYPERLINK(myHyperlink(D92))","v":"http://ladv.de/leistungsdatenbank/athletenprofil/62770/Christian-Wolfarth.htm"}]
[92,333,"Demuth","Marie","SWC Regensburg",1991,25,"w","F","BY",{"$f":"HYPERLINK(myHyperlink(D93))","v":"http://ladv.de/leistungsdatenbank/athletenprofil/115969/Marie-Demuth.htm"}]
[93,334,"Machura","Katharina","SWC Regensburg",1977,39,"w","W35","BY",{"$f":"HYPERLINK(myHyperlink(D94))","v":"http://ladv.de/leistungsdatenbank/athletenprofil/57374/Katharina-Machura.htm"}]
[94,335,"Boldt","Constanze","SWC Regensburg",1973,43,"w","W40","BY",{"$f":"HYPERLINK(myHyperlink(D95))","v":"http://ladv.de/leistungsdatenbank/athletenprofil/34191/Constanze-Boldt.htm"}]
[95,336,"Fuchs","Sonja","SWC Regensburg",1965,51,"w","W50","BY",{"$f":"HYPERLINK(myHyperlink(D96))","v":"http://ladv.de/leistungsdatenbank/athletenprofil/26905/Sonja-Fuchs.htm"}]
[96,337,"Soder","Monika","SWC Regensburg",1965,51,"w","W50","BY",{"$f":"HYPERLINK(myHyperlink(D97))","v":"http://ladv.de/leistungsdatenbank/athletenprofil/27365/Monika-Soder.htm"}]
[97,338,"Graf","Regina","SWC Regensburg",1955,61,"w","W60","BY",{"$f":"HYPERLINK(myHyperlink(D98))","v":"http://ladv.de/leistungsdatenbank/athletenprofil/29423/Regina-Graf.htm"}]
[98,59,"Hörmann","Hans","PTSV Rosenheim",1958,58,"m","M55","BY",{"$f":"HYPERLINK(myHyperlink(D99))","v":"http://ladv.de/leistungsdatenbank/athletenprofil/120382/Hans-H%C3%B6rmann.htm"}]
[99,339,"Schuri","Monika","Laufgem. Wehringen",1969,47,"w","W45","BY",{"$f":"HYPERLINK(myHyperlink(D100))","v":"http://ladv.de/leistungsdatenbank/athletenprofil/26135/Monika-Schuri.htm"}]
[100,60,"Gröbl","Tobias","LG Zusam",1983,33,"m","M","BY",{"$f":"HYPERLINK(myHyperlink(D101))","v":"http://ladv.de/leistungsdatenbank/athletenprofil/25400/Tobias-Gr%C3%B6bl.htm"}]
[101,61,"Baroth,","Achim","LG Asslar-Werdorf",1964,52,"m","M50","HE",{"$f":"HYPERLINK(myHyperlink(D102))","v":""}]
[102,62,"Feussner,","Marc","ASC 1990 Breidenbach",1982,34,"m","M","HE",{"$f":"HYPERLINK(myHyperlink(D103))","v":""}]
[103,63,"Schreiner,","Kilian","ASC 1990 Breidenbach",1993,23,"m","M","HE",{"$f":"HYPERLINK(myHyperlink(D104))","v":""}]
[104,340,"Chacon-Biebach,","Laura","ASC Darmstadt",1988,28,"w","F","HE",{"$f":"HYPERLINK(myHyperlink(D105))","v":""}]
[105,64,"Kux,","Dieter","ASC Darmstadt",1961,55,"m","M55","HE",{"$f":"HYPERLINK(myHyperlink(D106))","v":""}]
[106,341,"Raatz,","Simone","ASC Darmstadt",1976,40,"w","W40","HE",{"$f":"HYPERLINK(myHyperlink(D107))","v":""}]
[107,342,"Schmidt,","Carin Irina","ASC Darmstadt",1976,40,"w","W40","HE",{"$f":"HYPERLINK(myHyperlink(D108))","v":""}]
[108,343,"Behrens,","Alexandra","ASC Darmstadt",1972,44,"w","W40","HE",{"$f":"HYPERLINK(myHyperlink(D109))","v":""}]
[109,65,"Schwarz,","Mike","SV Blau-Weiß Dodenhausen",1980,36,"m","M35","HE",{"$f":"HYPERLINK(myHyperlink(D110))","v":""}]
[110,66,"Harland,","Jörn","SSC Hanau-Rodenbach",1981,35,"m","M35","HE",{"$f":"HYPERLINK(myHyperlink(D111))","v":""}]
[111,67,"Reinke,","Ingbert","SSC  Hanau-Rodenbach",1977,39,"m","M35","HE",{"$f":"HYPERLINK(myHyperlink(D112))","v":""}]
[112,68,"Seibert,","Thomas","SSC Hanau-Rodenbach",1979,37,"m","M35","HE",{"$f":"HYPERLINK(myHyperlink(D113))","v":""}]
[113,69,"Seidel,","Frank","SSC  Hanau-Rodenbach",1963,53,"m","M50","HE",{"$f":"HYPERLINK(myHyperlink(D114))","v":""}]
[114,70,"Riefer,","Markus","SSC Hanau-Rodenbach",1966,50,"m","M50","HE",{"$f":"HYPERLINK(myHyperlink(D115))","v":""}]
[115,71,"Hinze,","Stefan","SSC  Hanau-Rodenbach",1963,53,"m","M50","HE",{"$f":"HYPERLINK(myHyperlink(D116))","v":""}]
[116,72,"Kaiser,","Felix","PSV Grün-Weiß Kassel",1976,40,"m","M40","HE",{"$f":"HYPERLINK(myHyperlink(D117))","v":""}]
[117,73,"Schwab,","Marco","PSV Grün-Weiß Kassel",1973,43,"m","M40","HE",{"$f":"HYPERLINK(myHyperlink(D118))","v":""}]
[118,74,"Gerstenacker,","Thomas","PSV Grün-Weiß Kassel",1973,43,"m","M40","HE",{"$f":"HYPERLINK(myHyperlink(D119))","v":""}]
[119,75,"Austin-Kerl,","Jürgen","PSV Grün-Weiß Kassel",1970,46,"m","M45","HE",{"$f":"HYPERLINK(myHyperlink(D120))","v":""}]
[120,344,"Henning,","Ursula","PSV Grün-Weiß Kassel",1961,55,"w","W55","HE",{"$f":"HYPERLINK(myHyperlink(D121))","v":""}]
[121,76,"Collis,","Fenner","LC Olympia Wiesbaden",1967,49,"m","M45","HE",{"$f":"HYPERLINK(myHyperlink(D122))","v":""}]
[122,345,"Stephan,","Kerstin","LC Olympia Wiesbaden",1975,41,"w","W40","HE",{"$f":"HYPERLINK(myHyperlink(D123))","v":""}]
[123,346,"Gärtner,","Elke","LC Olympia Wiesbaden",1963,53,"w","W50","HE",{"$f":"HYPERLINK(myHyperlink(D124))","v":""}]
[124,347,"Strausa","Agata","Lauf Team Haspa Marathon Hamburg",1989,27,"w","F","HH",{"$f":"HYPERLINK(myHyperlink(D125))","v":""}]
[125,348,"Nüser","Katharina","LG Wedel-Pinneberg",1987,29,"w","F","HH",{"$f":"HYPERLINK(myHyperlink(D126))","v":""}]
[126,77,"Lehmann","Frank","Laufclub BlueLiner",1971,45,"m","M45","NI",{"$f":"HYPERLINK(myHyperlink(D127))","v":"http://ladv.de/leistungsdatenbank/athletenprofil/45076/Frank-Lehmann.htm"}]
[127,349,"Krinke","Nicole","LG Nienburg",1978,38,"w","W35","NI",{"$f":"HYPERLINK(myHyperlink(D128))","v":"http://ladv.de/leistungsdatenbank/athletenprofil/40811/Nicole-Krinke.htm"}]
[128,78,"Nykamp","Berthold","LC Nordhorn",1946,70,"m","M70","NI",{"$f":"HYPERLINK(myHyperlink(D129))","v":"http://ladv.de/leistungsdatenbank/athletenprofil/43578/Berthold-Nykamp.htm"}]
[129,79,"Tjarks","Eduard","LG Ostfriesland",1954,{"$f":"2016-F130","v":62},"m","M60","NI",{"$f":"HYPERLINK(myHyperlink(D130))","v":"http://ladv.de/leistungsdatenbank/athletenprofil/39252/Eduard-Tjarks.htm"}]
[130,80,"Bartel","Sebastian","FC Wittsfeld 01",1983,33,"m","M","NI",{"$f":"HYPERLINK(myHyperlink(D131))","v":"http://ladv.de/leistungsdatenbank/athletenprofil/276485/Sebastian-Bartel.htm"}]
[131,81,"Pannemann","Björn","FC Wittsfeld 01",1982,34,"m","M","NI",{"$f":"HYPERLINK(myHyperlink(D132))","v":"http://ladv.de/leistungsdatenbank/athletenprofil/275499/Bj%C3%B6rn-Pannemann.htm"}]
[132,82,"Wyrwoll","Lothar","Aachener TG",1992,24,"m","M","NO",{"$f":"HYPERLINK(myHyperlink(D133))","v":""}]
[133,83,"Camminady","Thomas","Aachener TG",1989,27,"m","M","NO",{"$f":"HYPERLINK(myHyperlink(D134))","v":""}]
[134,84,"Pietsch","Gero","Aachener TG",1992,24,"m","M","NO",{"$f":"HYPERLINK(myHyperlink(D135))","v":""}]
[135,85,"Stollenwerk","Yannic","Aachener TG",1990,26,"m","M","NO",{"$f":"HYPERLINK(myHyperlink(D136))","v":""}]
[136,86,"Hibbe","Tobias","Aachener TG",1990,26,"m","M","NO",{"$f":"HYPERLINK(myHyperlink(D137))","v":""}]
[137,350,"Lauxmann","Lucia","Aachener TG",1992,24,"w","F","NO",{"$f":"HYPERLINK(myHyperlink(D138))","v":""}]
[138,351,"Kümpers","Julias","Aachener TG",1992,24,"w","F","NO",{"$f":"HYPERLINK(myHyperlink(D139))","v":""}]
[139,352,"Fourné","Franziska","Aachener TG",1996,20,"w","WU23","NO",{"$f":"HYPERLINK(myHyperlink(D140))","v":""}]
[140,353,"Basten","Irene","Aachener TG",1984,32,"w","W35","NO",{"$f":"HYPERLINK(myHyperlink(D141))","v":""}]
[141,87,"Ortmann","Olaf","VFL Bergheide Sterkrade",1971,45,"m","M45","NO",{"$f":"HYPERLINK(myHyperlink(D142))","v":""}]
[142,354,"Kohlen","Helene","SV Germania Dürwiß",1955,61,"w","W60","NO",{"$f":"HYPERLINK(myHyperlink(D143))","v":""}]
[143,88,"Di Dio","Salvatore","LKD Düsseldorf",1972,44,"m","M40","NO",{"$f":"HYPERLINK(myHyperlink(D144))","v":""}]
[144,89,"Wölfel","Wilhelm","VFL Engelskirchen",1960,56,"m","M55","NO",{"$f":"HYPERLINK(myHyperlink(D145))","v":""}]
[145,90,"Rybak","Vitaliy","Ayyo-Team Essen",1980,36,"m","M35","NO",{"$f":"HYPERLINK(myHyperlink(D146))","v":""}]
[146,91,"Göktas","Nihat","Ayyo-Team Essen",1976,40,"m","M40","NO",{"$f":"HYPERLINK(myHyperlink(D147))","v":""}]
[147,92,"Yilmaz","Muharrem","Ayyo-Team Essen",1971,45,"m","M45","NO",{"$f":"HYPERLINK(myHyperlink(D148))","v":""}]
[148,93,"Celik","Selami","Ayyo-Team Essen",1967,49,"m","M45","NO",{"$f":"HYPERLINK(myHyperlink(D149))","v":""}]
[149,355,"Demir","Ümran","Ayyo-Team Essen",1972,44,"w","W40","NO",{"$f":"HYPERLINK(myHyperlink(D150))","v":""}]
[150,356,"Schusters","Katrin","Gerresheimer TV",1997,19,"w","WU23","NO",{"$f":"HYPERLINK(myHyperlink(D151))","v":""}]
[151,357,"Hellenbrand","Lilo","DJK Gillrath 1911",1956,60,"w","W60","NO",{"$f":"HYPERLINK(myHyperlink(D152))","v":""}]
[152,94,"Heise","Ulrich","DJK Elmar Kohlscheid",1938,78,"m","M75","NO",{"$f":"HYPERLINK(myHyperlink(D153))","v":""}]
[153,95,"Müller-Maring","Klaus","TuS Köln rrh.",1944,72,"m","M70","NO",{"$f":"HYPERLINK(myHyperlink(D154))","v":""}]
[154,96,"Risko","Sebastian","Mönchengladbacher LG",1991,25,"m","M","NO",{"$f":"HYPERLINK(myHyperlink(D155))","v":""}]
[155,97,"Schmidt","Daniel","Tura Remscheid-Süd",1986,30,"m","M","NO",{"$f":"HYPERLINK(myHyperlink(D156))","v":""}]
[156,98,"Ritte","Stefan","LAZ Rhede",1992,24,"m","M","NO",{"$f":"HYPERLINK(myHyperlink(D157))","v":""}]
[157,358,"Groß-Hardt","jana","LAZ Rhede",1988,28,"w","F","NO",{"$f":"HYPERLINK(myHyperlink(D158))","v":""}]
[158,99,"Kolks","Jonathan","LAZ Rhede",1996,20,"m","MU23","NO",{"$f":"HYPERLINK(myHyperlink(D159))","v":""}]
[159,100,"Eckers","Marcel","LAZ Rhede",1995,21,"m","MU23","NO",{"$f":"HYPERLINK(myHyperlink(D160))","v":""}]
[160,101,"Fricke","Marc","Rhein-Berg  Runners",1974,42,"m","M40","NO",{"$f":"HYPERLINK(myHyperlink(D161))","v":""}]
[161,102,"Schneider","Norbert","Rhein-Berg Runners",1968,48,"m","M45","NO",{"$f":"HYPERLINK(myHyperlink(D162))","v":""}]
[162,103,"Koller","Martin","Rhein-Berg Runners",1966,50,"m","M45","NO",{"$f":"HYPERLINK(myHyperlink(D163))","v":""}]
[163,359,"Hundeborn","Inga","Solinger LG",1996,20,"w","WU23","NO",{"$f":"HYPERLINK(myHyperlink(D164))","v":""}]
[164,104,"Deinet","Lars","Solinger LG",1977,39,"m","M35","NO",{"$f":"HYPERLINK(myHyperlink(D165))","v":""}]
[165,105,"Gehrmann","Rolf","TSG Eisenberg",1976,40,"m","M40","PF",{"$f":"HYPERLINK(myHyperlink(D166))","v":""}]
[166,106,"Matheis","Ralf","TSG Eisenberg",1965,51,"m","M50","PF",{"$f":"HYPERLINK(myHyperlink(D167))","v":""}]
[167,360,"Eisenbarth","Astrid","TSG Eisenberg",1975,41,"w","W40","PF",{"$f":"HYPERLINK(myHyperlink(D168))","v":""}]
[168,361,"Rösel","Beatrix","TSG Eisenberg",1967,49,"w","W45","PF",{"$f":"HYPERLINK(myHyperlink(D169))","v":""}]
[169,362,"Wagner","Regine","TSG Eisenberg",1965,51,"w","W50","PF",{"$f":"HYPERLINK(myHyperlink(D170))","v":""}]
[170,363,"Matheis","Josefa","TSG Eisenberg",1966,50,"w","W50","PF",{"$f":"HYPERLINK(myHyperlink(D171))","v":""}]
[171,107,"Dehaut","Thomas","LLG Landstuhl",1963,53,"m","M50","PF",{"$f":"HYPERLINK(myHyperlink(D172))","v":""}]
[172,364,"Grießbaum","Tanja","LG Rülzheim",1992,24,"w","F","PF",{"$f":"HYPERLINK(myHyperlink(D173))","v":""}]
[173,108,"Dussa","Gunnar","TSV Uelversheim",1966,50,"m","M50","RH",{"$f":"HYPERLINK(myHyperlink(D174))","v":""}]
[174,109,"Honsdorf","Uwe","TuS Rot-Weiss Koblenz",1963,53,"m","M50","RL",{"$f":"HYPERLINK(myHyperlink(D175))","v":""}]
[175,110,"Doll","Frank","TuS Rot-Weiss Koblenz",1966,50,"m","M50","RL",{"$f":"HYPERLINK(myHyperlink(D176))","v":""}]
[176,111,"Kirschey","Thomas","TuS Rot-Weiss Koblenz",1961,55,"m","M55","RL",{"$f":"HYPERLINK(myHyperlink(D177))","v":""}]
[177,112,"Gilberg","Thomas","LG Rhein-Wied",1969,47,"m","M45","RL",{"$f":"HYPERLINK(myHyperlink(D178))","v":""}]
[178,113,"Sülzen","Marc","LG Rhein-Wied",1971,45,"m","M45","RL",{"$f":"HYPERLINK(myHyperlink(D179))","v":""}]
[179,114,"Pulger","Stefan","LG Rhein-Wied",1966,50,"m","M50","RL",{"$f":"HYPERLINK(myHyperlink(D180))","v":""}]
[180,365,"Mockenhaupt","Sabrina","LG Sieg",1980,36,"w","F","RL",{"$f":"HYPERLINK(myHyperlink(D181))","v":""}]
[181,115,"Bock","Alexander","Post-Sportverein  Trier",1992,24,"m","M","RL",{"$f":"HYPERLINK(myHyperlink(D182))","v":""}]
[182,116,"Theis","Lucas","Post-Sportverein  Trier",1993,23,"m","M","RL",{"$f":"HYPERLINK(myHyperlink(D183))","v":""}]
[183,117,"Theobald","Andreas","Post-Sportverein Trier",1993,23,"m","M","RL",{"$f":"HYPERLINK(myHyperlink(D184))","v":""}]
[184,366,"Schmitz","Nora","Post-Sportverein Trier",1992,24,"w","F","RL",{"$f":"HYPERLINK(myHyperlink(D185))","v":""}]
[185,367,"Kracke","Monika","SV Urmitz",1973,43,"w","W40","RL",{"$f":"HYPERLINK(myHyperlink(D186))","v":""}]
[186,118,"Kümmel","Wieland","Ahrensburger TSV",1995,21,"m","MU23","SH",{"$f":"HYPERLINK(myHyperlink(D187))","v":""}]
[187,368,"Krause","Ute","Sport-Club Itzehoe",1966,50,"w","W50","SH",{"$f":"HYPERLINK(myHyperlink(D188))","v":""}]
[188,119,"Ospelt,","Gerhard","LC Rehlingen",1958,58,"m","M55","SL",{"$f":"HYPERLINK(myHyperlink(D189))","v":""}]
[189,369,"Celette,","Gabriele","LC Rehlingen",1956,60,"w","W60","SL",{"$f":"HYPERLINK(myHyperlink(D190))","v":""}]
[190,120,"Herrmann,","Johannes","LSG Schmelz-Hüttersdorf",1941,75,"m","M75","SL",{"$f":"HYPERLINK(myHyperlink(D191))","v":""}]
[191,121,"Rhodes,","Daniel","LSG Sbr.-Sulzbachtal",1993,23,"m","M","SL",{"$f":"HYPERLINK(myHyperlink(D192))","v":""}]
[192,370,"Herzberg","Carolin","LG Mittweida",1995,21,"w","WU23","SN",{"$f":"HYPERLINK(myHyperlink(D193))","v":""}]
[193,122,"Bendel","Siegfried","SG Chemie Zeitz",1939,{"$f":"2016-F194","v":77},"m","M75","ST",{"$f":"HYPERLINK(myHyperlink(D194))","v":"http://ladv.de/leistungsdatenbank/athletenprofil/50989/Siegfried-Bendel.htm"}]
[194,123,"Zabel","Egbert","Cöthener FC Germania 03",1953,63,"m","M60","ST",{"$f":"HYPERLINK(myHyperlink(D195))","v":"http://ladv.de/leistungsdatenbank/athletenprofil/51211/Egbert-Zabel.htm"}]
[195,124,"Borggrefe","Fabian","SG Spergau",1972,44,"m","M40","ST",{"$f":"HYPERLINK(myHyperlink(D196))","v":"http://ladv.de/leistungsdatenbank/athletenprofil/52334/Fabian-Borggrefe.htm"}]
[196,125,"Bayer","Stephan","GutsMuths-Rennsteiglaufverein   e.v.",1961,55,"m","M55","TH",{"$f":"HYPERLINK(myHyperlink(D197))","v":""}]
[197,371,"Härtl","Anke","GutsMuths-Rennsteiglaufverein e.v.",1966,50,"w","W50","TH",{"$f":"HYPERLINK(myHyperlink(D198))","v":""}]
[198,126,"Bieler","Günter","TuS Deuz",1954,62,"m","M60","WE",{"$f":"HYPERLINK(myHyperlink(D199))","v":""}]
[199,127,"Hailu","Atey Yohannes","TuS Deuz",1991,25,"m","M","WE",{"$f":"HYPERLINK(myHyperlink(D200))","v":""}]
[200,128,"Schneider","Gerhard","TuS Deuz",1950,66,"m","M65","WE",{"$f":"HYPERLINK(myHyperlink(D201))","v":""}]
[201,129,"Steiner","Karl","TuS Deuz",1954,62,"m","M60","WE",{"$f":"HYPERLINK(myHyperlink(D202))","v":""}]
[202,130,"Vitt","Ulrich","TuS Deuz",1956,60,"m","M60","WE",{"$f":"HYPERLINK(myHyperlink(D203))","v":""}]
[203,131,"Dietz","Thorben","LG Dorsten",1989,27,"m","M","WE",{"$f":"HYPERLINK(myHyperlink(D204))","v":""}]
[204,132,"Duppich","Yannik","LG Dorsten",1990,26,"m","M","WE",{"$f":"HYPERLINK(myHyperlink(D205))","v":""}]
[205,133,"Gallo","Christoph","LG Dorsten",1989,27,"m","M","WE",{"$f":"HYPERLINK(myHyperlink(D206))","v":""}]
[206,134,"Keil-Forneck","Andreas","LG Dorsten",1987,29,"m","M","WE",{"$f":"HYPERLINK(myHyperlink(D207))","v":""}]
[207,135,"Zeller","Amos","LG Dorsten",1990,26,"m","M","WE",{"$f":"HYPERLINK(myHyperlink(D208))","v":""}]
[208,136,"Gaudschun","Alfred","TuS 09 Erkenschwick",1956,60,"m","M60","WE",{"$f":"HYPERLINK(myHyperlink(D209))","v":""}]
[209,372,"Hausstein","Sabine","TV Niederschelden",1960,56,"w","W55","WE",{"$f":"HYPERLINK(myHyperlink(D210))","v":""}]
[210,373,"Andrieu-Syrek","Ina","SG Wenden",1963,53,"w","W45","WE",{"$f":"HYPERLINK(myHyperlink(D211))","v":""}]
[211,374,"Clemens","Sandra","SG Wenden",1989,27,"w","F","WE",{"$f":"HYPERLINK(myHyperlink(D212))","v":""}]
[212,375,"Dörschel","Christl","SG Wenden",1976,40,"w","W40","WE",{"$f":"HYPERLINK(myHyperlink(D213))","v":""}]
[213,376,"Dreier","Verena","SG Wenden",1985,31,"w","F","WE",{"$f":"HYPERLINK(myHyperlink(D214))","v":""}]
[214,137,"Fillep","Gunnar","SG Wenden",1976,40,"m","M40","WE",{"$f":"HYPERLINK(myHyperlink(D215))","v":""}]
[215,138,"Solomun","Eyob","SG Wenden",1993,23,"m","M","WE",{"$f":"HYPERLINK(myHyperlink(D216))","v":""}]
[216,377,"Wied","Ramona","SG Wenden",1970,46,"w","W45","WE",{"$f":"HYPERLINK(myHyperlink(D217))","v":""}]
[217,139,"Stöcker","Werner","LG Wittgenstein",1939,77,"m","M75","WE",{"$f":"HYPERLINK(myHyperlink(D218))","v":""}]
[218,378,"Bidermann","Jutta","LSG Aalen",1956,60,"w","W60","WÜ",{"$f":"HYPERLINK(myHyperlink(D219))","v":"http://ladv.de/leistungsdatenbank/athletenprofil/4107/Jutta-Bidermann.htm"}]
[219,140,"Schropp","Andreas","Lauftreff Altburg",1978,38,"m","M35","WÜ",{"$f":"HYPERLINK(myHyperlink(D220))","v":"http://ladv.de/leistungsdatenbank/athletenprofil/16705/Andreas-Schropp.htm"}]
[220,141,"Liebing","Horst","Lauftreff Altburg",1934,82,"m","M80","WÜ",{"$f":"HYPERLINK(myHyperlink(D221))","v":"http://ladv.de/leistungsdatenbank/athletenprofil/61969/Horst-Liebing.htm"}]
[221,379,"Holdermann","Christine","SZ Bad Herrenalb",1966,50,"w","W50","WÜ",{"$f":"HYPERLINK(myHyperlink(D222))","v":""}]
[222,142,"Königs","Ulrich","TherapieReha Bottwartal",1984,32,"m","M","WÜ",{"$f":"HYPERLINK(myHyperlink(D223))","v":""}]
[223,380,"Guggenmoser","Erna","LG Calw",1949,67,"w","W65","WÜ",{"$f":"HYPERLINK(myHyperlink(D224))","v":"http://ladv.de/leistungsdatenbank/athletenprofil/12390/Erna-Guggenmoser.htm"}]
[224,143,"Feil","Rainer","TSV Dagersheim",1965,51,"m","M50","WÜ",{"$f":"HYPERLINK(myHyperlink(D225))","v":"http://ladv.de/leistungsdatenbank/athletenprofil/121944/Rainer-Feil.htm"}]
[225,144,"Schneider","Thomas","LAC Degerloch",1962,54,"m","M50","WÜ",{"$f":"HYPERLINK(myHyperlink(D226))","v":"http://ladv.de/leistungsdatenbank/athletenprofil/8287/Thomas-Schneider.htm"}]
[226,381,"Ulrich","Veronika","TSG Ehingen",1968,48,"w","W45","WÜ",{"$f":"HYPERLINK(myHyperlink(D227))","v":"http://ladv.de/leistungsdatenbank/athletenprofil/191765/Veronika-Ulrich.htm"}]
[227,145,"Olejnik","Marian-Jan","LG Esslingen",1959,57,"m","M55","WÜ",{"$f":"HYPERLINK(myHyperlink(D228))","v":"http://ladv.de/leistungsdatenbank/athletenprofil/17399/Marian-Jan-Olejnik.htm"}]
[228,146,"Gangi","Salvatore","LG Esslingen",1950,66,"m","M65","WÜ",{"$f":"HYPERLINK(myHyperlink(D229))","v":"http://ladv.de/leistungsdatenbank/athletenprofil/61994/Salvatore-Gangi.htm"}]
[229,382,"Sigg-Sohn","Christine","LG Esslingen",1967,49,"w","W45","WÜ",{"$f":"HYPERLINK(myHyperlink(D230))","v":"http://ladv.de/leistungsdatenbank/athletenprofil/124952/Christine-Sigg-Sohn.htm"}]
[230,147,"Fetz","Günther","TF Feuerbach",1960,56,"m","M55","WÜ",{"$f":"HYPERLINK(myHyperlink(D231))","v":"http://ladv.de/leistungsdatenbank/athletenprofil/67109/G%C3%BCnther-Fetz.htm"}]
[231,148,"Seidl","Manuel","LG Filder",1979,37,"m","M35","WÜ",{"$f":"HYPERLINK(myHyperlink(D232))","v":"http://ladv.de/leistungsdatenbank/athletenprofil/16056/Manuel-Seidl.htm"}]
[232,149,"Körner","Lutz","LG Filder",1978,38,"m","M35","WÜ",{"$f":"HYPERLINK(myHyperlink(D233))","v":""}]
[233,150,"Vosseler","Matthias","LG Filder",1969,47,"m","M45","WÜ",{"$f":"HYPERLINK(myHyperlink(D234))","v":"http://ladv.de/leistungsdatenbank/athletenprofil/3401/Matthias-Vosseler.htm"}]
[234,151,"Macke","Jürgen","LG Filder",1965,51,"m","M50","WÜ",{"$f":"HYPERLINK(myHyperlink(D235))","v":"http://ladv.de/leistungsdatenbank/athletenprofil/270513/J%C3%BCrgen-Macke.htm"}]
[235,383,"Lippold","Julia","LG Filder",1986,30,"w","F","WÜ",{"$f":"HYPERLINK(myHyperlink(D236))","v":"http://ladv.de/leistungsdatenbank/athletenprofil/5521/Julia-Lippold.htm"}]
[236,384,"Binder","Karoline","LG Filder",1992,24,"w","F","WÜ",{"$f":"HYPERLINK(myHyperlink(D237))","v":"http://ladv.de/leistungsdatenbank/athletenprofil/17730/Karoline-Binder.htm"}]
[237,385,"Vogler","Katrin","LG Filder",1972,44,"w","W40","WÜ",{"$f":"HYPERLINK(myHyperlink(D238))","v":"http://ladv.de/leistungsdatenbank/athletenprofil/66768/Katrin-Vogler.htm"}]
[238,152,"Krenz","Dietmar","VfL Freudenstadt",1969,47,"m","M45","WÜ",{"$f":"HYPERLINK(myHyperlink(D239))","v":"http://ladv.de/leistungsdatenbank/athletenprofil/8740/Dietmar-Krenz.htm"}]
[239,386,"Claus","Heidrun","VfL Freudenstadt",1967,49,"w","W45","WÜ",{"$f":"HYPERLINK(myHyperlink(D240))","v":"http://ladv.de/leistungsdatenbank/athletenprofil/266389/Heidrun-Claus.htm"}]
[240,153,"Häcker","Markus","TSG 1845 Heilbronn",1980,36,"m","M35","WÜ",{"$f":"HYPERLINK(myHyperlink(D241))","v":"http://ladv.de/leistungsdatenbank/athletenprofil/136005/Markus-H%C3%A4cker.htm"}]
[241,154,"Schnabel","Odilo","TSG 1845 Heilbronn",1952,64,"m","M60","WÜ",{"$f":"HYPERLINK(myHyperlink(D242))","v":"http://ladv.de/leistungsdatenbank/athletenprofil/13497/Odilo-Schnabel.htm"}]
[242,387,"Leibfried","Isabel","TSG 1845 Heilbronn",1991,25,"w","F","WÜ",{"$f":"HYPERLINK(myHyperlink(D243))","v":"http://ladv.de/leistungsdatenbank/athletenprofil/18130/Isabel-Leibfried.htm"}]
[243,388,"Clio","Veronica","TSG 1845 Heilbronn",1985,31,"w","F","WÜ",{"$f":"HYPERLINK(myHyperlink(D244))","v":"http://ladv.de/leistungsdatenbank/athletenprofil/144247/Veronica-Clio-H%C3%A4hnle-Pohl.htm"}]
[244,389,"Englisch","Bettina","TSG 1845 Heilbronn",1979,37,"w","W35","WÜ",{"$f":"HYPERLINK(myHyperlink(D245))","v":"http://ladv.de/leistungsdatenbank/athletenprofil/289477/Bettina-Englisch.htm"}]
[245,390,"Dermann","Fiona","Spvgg Holzgerlingen",1988,28,"w","F","WÜ",{"$f":"HYPERLINK(myHyperlink(D246))","v":"http://ladv.de/leistungsdatenbank/athletenprofil/266069/Fiona-Dermann.htm"}]
[246,391,"Vogl","Gudrun","Spvgg Renningen",1949,67,"w","W65","WÜ",{"$f":"HYPERLINK(myHyperlink(D247))","v":"http://ladv.de/leistungsdatenbank/athletenprofil/3442/Gudrun-Vogl.htm"}]
[247,155,"Beil","Uwe","Turn- und Sportverein Hossingen",1966,50,"m","M50","WÜ",{"$f":"HYPERLINK(myHyperlink(D248))","v":"http://ladv.de/leistungsdatenbank/athletenprofil/271591/Uwe-Beil.htm"}]
[248,156,"Geiger","Harald","TSV Kiebingen",1968,48,"m","M45","WÜ",{"$f":"HYPERLINK(myHyperlink(D249))","v":"http://ladv.de/leistungsdatenbank/athletenprofil/18914/Harald-Geiger.htm"}]
[249,157,"Fröhlich","Siegfried","TSV Kiebingen",1968,48,"m","M45","WÜ",{"$f":"HYPERLINK(myHyperlink(D250))","v":"http://ladv.de/leistungsdatenbank/athletenprofil/10027/Siegfried-Fr%C3%B6hlich.htm"}]
[250,158,"Hartmann","Michael","TSV Kiebingen",1966,50,"m","M45","WÜ",{"$f":"HYPERLINK(myHyperlink(D251))","v":"http://ladv.de/leistungsdatenbank/athletenprofil/12797/Michael-Hartmann.htm"}]
[251,159,"Geiger","Wolfgang","TSV Kiebingen",1965,51,"m","M45","WÜ",{"$f":"HYPERLINK(myHyperlink(D252))","v":"http://ladv.de/leistungsdatenbank/athletenprofil/10172/Wolfgang-Geiger.htm"}]
[252,160,"Mayer","Volker","TSV Kiebingen",1966,50,"m","M45","WÜ",{"$f":"HYPERLINK(myHyperlink(D253))","v":"http://ladv.de/leistungsdatenbank/athletenprofil/116592/Volker-Mayer.htm"}]
[253,161,"Mannsdörfer","Sebastian","LAZ Salamander Kornwestheim-LB",1993,23,"m","M","WÜ",{"$f":"HYPERLINK(myHyperlink(D254))","v":"http://ladv.de/leistungsdatenbank/athletenprofil/13420/Sebastian-Mannsd%C3%B6rfer.htm"}]
[254,392,"Scherzer","Lina","LAZ Salamander Kornwestheim-LB",1990,26,"w","F","WÜ",{"$f":"HYPERLINK(myHyperlink(D255))","v":"http://ladv.de/leistungsdatenbank/athletenprofil/267572/Lina-Scherzer.htm"}]
[255,393,"Hajek","Branka","LAZ Salamander Kornwestheim-LB",1984,32,"w","F","WÜ",{"$f":"HYPERLINK(myHyperlink(D256))","v":"http://ladv.de/leistungsdatenbank/athletenprofil/14148/Branka-Hajek.htm"}]
[256,394,"Veith","Pamela","TSV Kusterdingen",1973,43,"w","W40","WÜ",{"$f":"HYPERLINK(myHyperlink(D257))","v":"http://ladv.de/leistungsdatenbank/athletenprofil/19113/Pamela-Veith.htm"}]
[257,162,"Deuringer","Dennis","LG Limes-Rems",1971,{"$f":"2016-F258","v":45},"m","M45","WÜ",{"$f":"HYPERLINK(myHyperlink(D258))","v":"http://ladv.de/leistungsdatenbank/athletenprofil/244950/Dennis-Deuringer.htm"}]
[258,395,"Notz","Melanie","TUS Metzingen",1968,48,"w","W45","WÜ",{"$f":"HYPERLINK(myHyperlink(D259))","v":"http://ladv.de/leistungsdatenbank/athletenprofil/164958/Melanie-Notz.htm"}]
[259,163,"Kuhn","Paul","SG 1977 Monakam",1971,45,"m","M40","WÜ",{"$f":"HYPERLINK(myHyperlink(D260))","v":""}]
[260,164,"Borowka","Roland","SG 1977 Monakam",1957,59,"m","M55","WÜ",{"$f":"HYPERLINK(myHyperlink(D261))","v":""}]
[261,165,"Graunke","Alexander","TSG Münsingen",1965,51,"m","M50","WÜ",{"$f":"HYPERLINK(myHyperlink(D262))","v":"http://ladv.de/leistungsdatenbank/athletenprofil/13095/Alexander-Graunke.htm"}]
[262,166,"Nothstein","Matthias","Murrtal-Runners",1963,53,"m","M50","WÜ",{"$f":"HYPERLINK(myHyperlink(D263))","v":"http://ladv.de/leistungsdatenbank/athletenprofil/275900/Matthias-Nothstein.htm"}]
[263,167,"Kroner","Hans","Murrtal-Runners",1958,58,"m","M55","WÜ",{"$f":"HYPERLINK(myHyperlink(D264))","v":"http://ladv.de/leistungsdatenbank/athletenprofil/7283/Hans-Kroner.htm"}]
[264,168,"Veith","Klaus-Dieter","Murrtal-Runners",1960,56,"m","M55","WÜ",{"$f":"HYPERLINK(myHyperlink(D265))","v":"http://ladv.de/leistungsdatenbank/athletenprofil/121220/Klaus-Dieter-Veith.htm"}]
[265,169,"Lafrenz","Fabian","LG Neckar-Enz",1966,50,"m","M50","WÜ",{"$f":"HYPERLINK(myHyperlink(D266))","v":"http://ladv.de/leistungsdatenbank/athletenprofil/10061/Fabian-Lafrenz.htm"}]
[266,170,"Kimmann","Michael","LG Neckar-Enz",1966,50,"m","M50","WÜ",{"$f":"HYPERLINK(myHyperlink(D267))","v":"http://ladv.de/leistungsdatenbank/athletenprofil/9760/Michael-Kimmann.htm"}]
[267,171,"Schmidt","Dietmar","LG Neckar-Enz",1963,53,"m","M50","WÜ",{"$f":"HYPERLINK(myHyperlink(D268))","v":"http://ladv.de/leistungsdatenbank/athletenprofil/16915/Dietmar-Schmidt.htm"}]
[268,172,"Bitz","Martin","LG Neckar-Enz",1959,57,"m","M55","WÜ",{"$f":"HYPERLINK(myHyperlink(D269))","v":"http://ladv.de/leistungsdatenbank/athletenprofil/289034/Martin-Bitz.htm"}]
[269,173,"Gerke","Günter","LG Neckar-Enz",1948,68,"m","M65","WÜ",{"$f":"HYPERLINK(myHyperlink(D270))","v":"http://ladv.de/leistungsdatenbank/athletenprofil/2919/G%C3%BCnter-Gerke.htm"}]
[270,396,"Heubach","Sabine","LG Neckar-Enz",1967,49,"w","W45","WÜ",{"$f":"HYPERLINK(myHyperlink(D271))","v":"http://ladv.de/leistungsdatenbank/athletenprofil/8474/Sabine-Heubach.htm"}]
[271,397,"Vielmeier","Regina","SV Oberkollbach",1961,55,"w","W55","WÜ",{"$f":"HYPERLINK(myHyperlink(D272))","v":"http://ladv.de/leistungsdatenbank/athletenprofil/15393/Regina-Vielmeier.htm"}]
[272,174,"Rollwa","Herbert","VfL Ostelsheim",1950,66,"m","M65","WÜ",{"$f":"HYPERLINK(myHyperlink(D273))","v":"http://ladv.de/leistungsdatenbank/athletenprofil/22670/Herbert-Rollwa.htm"}]
[273,175,"Krehl","Günter","VfL Ostelsheim",1948,68,"m","M65","WÜ",{"$f":"HYPERLINK(myHyperlink(D274))","v":"http://ladv.de/leistungsdatenbank/athletenprofil/113/G%C3%BCnter-Krehl.htm"}]
[274,176,"Nehring","Wolfgang","VfL Ostelsheim",1946,70,"m","M70","WÜ",{"$f":"HYPERLINK(myHyperlink(D275))","v":"http://ladv.de/leistungsdatenbank/athletenprofil/12429/Wolfgang-Nehring.htm"}]
[275,177,"Johnen","Walter","VfL Ostelsheim",1945,71,"m","M70","WÜ",{"$f":"HYPERLINK(myHyperlink(D276))","v":"http://ladv.de/leistungsdatenbank/athletenprofil/3656/Walter-Johnen.htm"}]
[276,178,"Obenauer","Peter","LV Pliezhausen 2012",1990,26,"m","M","WÜ",{"$f":"HYPERLINK(myHyperlink(D277))","v":"http://ladv.de/leistungsdatenbank/athletenprofil/8767/Peter-Obenauer.htm"}]
[277,398,"Arndt","Hannah","LV Pliezhausen 2012",1989,27,"w","F","WÜ",{"$f":"HYPERLINK(myHyperlink(D278))","v":"http://ladv.de/leistungsdatenbank/athletenprofil/21846/Hannah-Arndt.htm"}]
[278,179,"Collerone","Alessandro","Sparda-Team Rechberghausen",1976,40,"m","M40","WÜ",{"$f":"HYPERLINK(myHyperlink(D279))","v":"http://ladv.de/leistungsdatenbank/athletenprofil/18953/Alessandro-Collerone.htm"}]
[279,180,"Damrat","Tobias","LG Rems-Welland",1995,21,"m","MU23","WÜ",{"$f":"HYPERLINK(myHyperlink(D280))","v":"http://ladv.de/leistungsdatenbank/athletenprofil/15139/Tobias-Damrat.htm"}]
[280,181,"Richter","Siegfried","LG Rems-Welland",1962,54,"m","M50","WÜ",{"$f":"HYPERLINK(myHyperlink(D281))","v":"http://ladv.de/leistungsdatenbank/athletenprofil/99217/Siegfried-Richter.htm"}]
[281,182,"Damrat","Ralf","LG Rems-Welland",1966,50,"m","M50","WÜ",{"$f":"HYPERLINK(myHyperlink(D282))","v":"http://ladv.de/leistungsdatenbank/athletenprofil/6504/Ralf-Damrat.htm"}]
[282,183,"Marschik","Franz","LG Rems-Welland",1959,57,"m","M55","WÜ",{"$f":"HYPERLINK(myHyperlink(D283))","v":"http://ladv.de/leistungsdatenbank/athletenprofil/272/Franz-Marschik.htm"}]
[283,184,"Bartle","Albert","LG Rems-Welland",1960,56,"m","M55","WÜ",{"$f":"HYPERLINK(myHyperlink(D284))","v":""}]
[284,185,"Maslo","Günther","LG Rems-Welland",1951,65,"m","M65","WÜ",{"$f":"HYPERLINK(myHyperlink(D285))","v":"http://ladv.de/leistungsdatenbank/athletenprofil/9016/G%C3%BCnther-Maslo.htm"}]
[285,186,"Femerling","Urs","TSV Schmiden",1965,51,"m","M50","WÜ",{"$f":"HYPERLINK(myHyperlink(D286))","v":"http://ladv.de/leistungsdatenbank/athletenprofil/147412/Urs-Femerling.htm"}]
[286,187,"Müller","Uwe","TSV Schmiden",1965,51,"m","M50","WÜ",{"$f":"HYPERLINK(myHyperlink(D287))","v":"http://ladv.de/leistungsdatenbank/athletenprofil/280182/Uwe-M%C3%BCller.htm"}]
[287,188,"Neubert","Carsten","TSV Schmiden",1965,51,"m","M50","WÜ",{"$f":"HYPERLINK(myHyperlink(D288))","v":"http://ladv.de/leistungsdatenbank/athletenprofil/101306/Carsten-Neubert.htm"}]
[288,189,"Glotz","Jochen","Schurwald-Runners",1983,33,"m","M","WÜ",{"$f":"HYPERLINK(myHyperlink(D289))","v":"http://ladv.de/leistungsdatenbank/athletenprofil/288939/Jochen-Glotz.htm"}]
[289,190,"Linder","Markus","Schurwald-Runners",1975,41,"m","M40","WÜ",{"$f":"HYPERLINK(myHyperlink(D290))","v":"http://ladv.de/leistungsdatenbank/athletenprofil/288940/Markus-Linder.htm"}]
[290,191,"Höschele","Jochen","Eichenkreuz Schwaikheim",1968,48,"m","M45","WÜ",{"$f":"HYPERLINK(myHyperlink(D291))","v":"http://ladv.de/leistungsdatenbank/athletenprofil/8487/Jochen-H%C3%B6schele.htm"}]
[291,192,"Kudler","Vinzenz","SFG Serres 1993",1940,76,"m","M75","WÜ",{"$f":"HYPERLINK(myHyperlink(D292))","v":"http://ladv.de/leistungsdatenbank/athletenprofil/144151/Vinzenz-Kudler.htm"}]
[292,193,"Krauth","Joachim","VfL Sindelfingen",1989,27,"m","M","WÜ",{"$f":"HYPERLINK(myHyperlink(D293))","v":"http://ladv.de/leistungsdatenbank/athletenprofil/11182/Joachim-Krauth.htm"}]
[293,194,"Bantle","Robin","TV Sulz",1989,27,"m","M","WÜ",{"$f":"HYPERLINK(myHyperlink(D294))","v":"http://ladv.de/leistungsdatenbank/athletenprofil/289049/Robin-Bantle.htm"}]
[294,195,"Möller","Georg","TB Tailfingen",1965,51,"m","M50","WÜ",{"$f":"HYPERLINK(myHyperlink(D295))","v":"http://ladv.de/leistungsdatenbank/athletenprofil/12887/Georg-M%C3%B6ller.htm"}]
[295,196,"Neusch","Walter","TB Tailfingen",1959,57,"m","M55","WÜ",{"$f":"HYPERLINK(myHyperlink(D296))","v":"http://ladv.de/leistungsdatenbank/athletenprofil/289052/Walter-Neusch.htm"}]
[296,197,"Browatzki","Björn","LAV Stadtwerke Tübingen",1983,33,"m","M","WÜ",{"$f":"HYPERLINK(myHyperlink(D297))","v":"http://ladv.de/leistungsdatenbank/athletenprofil/290938/Björn-Browatzki.htm"},{"$f":"URLEncode(K297)","v":{"$error":"#NAME?"}}]
[297,198,"Friedrich","Simon","LAV Stadtwerke Tübingen",1988,28,"m","M","WÜ",{"$f":"HYPERLINK(myHyperlink(D298))","v":"http://ladv.de/leistungsdatenbank/athletenprofil/23003/Simon-Friedrich.htm"}]
[298,199,"Riethmüller","Lars","LAV Stadtwerke Tübingen",1972,44,"m","M40","WÜ",{"$f":"HYPERLINK(myHyperlink(D299))","v":"http://ladv.de/leistungsdatenbank/athletenprofil/115585/Lars-Riethm%C3%BCller.htm"}]
[299,200,"Diesch","Klaus","LAV Stadtwerke Tübingen",1968,48,"m","M40","WÜ",{"$f":"HYPERLINK(myHyperlink(D300))","v":"http://ladv.de/leistungsdatenbank/athletenprofil/10967/Klaus-Diesch.htm"}]
[300,201,"Ruckaberle","Oliver","LAV Stadtwerke Tübingen",1968,48,"m","M40","WÜ",{"$f":"HYPERLINK(myHyperlink(D301))","v":"http://ladv.de/leistungsdatenbank/athletenprofil/10080/Oliver-Ruckaberle.htm"}]
[301,202,"Koch","Matthias","LAV Stadtwerke Tübingen",1964,52,"m","M50","WÜ",{"$f":"HYPERLINK(myHyperlink(D302))","v":"http://ladv.de/leistungsdatenbank/athletenprofil/9805/Matthias-Koch.htm"}]
[302,203,"Allgäuer","Mathias","LAV Stadtwerke Tübingen",1964,52,"m","M50","WÜ",{"$f":"HYPERLINK(myHyperlink(D303))","v":"http://ladv.de/leistungsdatenbank/athletenprofil/9638/Mathias-Allg%C3%A4uer.htm"}]
[303,204,"Grossmann","Volker","LAV Stadtwerke Tübingen",1963,53,"m","M50","WÜ",{"$f":"HYPERLINK(myHyperlink(D304))","v":"http://ladv.de/leistungsdatenbank/athletenprofil/164621/Volker-Grossmann.htm"}]
[304,205,"Stegert","Gernot","LAV Stadtwerke Tübingen",1962,54,"m","M50","WÜ",{"$f":"HYPERLINK(myHyperlink(D305))","v":""}]
[305,206,"Ehret","Juergen","LAV Stadtwerke Tübingen",1962,54,"m","M50","WÜ",{"$f":"HYPERLINK(myHyperlink(D306))","v":"http://ladv.de/leistungsdatenbank/athletenprofil/114990/Juergen-Ehret.htm"}]
[306,207,"Wache","Hans-Jörg","LAV Stadtwerke Tübingen",1960,56,"m","M55","WÜ",{"$f":"HYPERLINK(myHyperlink(D307))","v":"http://ladv.de/leistungsdatenbank/athletenprofil/13205/Hans-J%C3%B6rg-Wache.htm"}]
[307,208,"Walz","Siegfried","LAV Stadtwerke Tübingen",1958,58,"m","M55","WÜ",{"$f":"HYPERLINK(myHyperlink(D308))","v":"http://ladv.de/leistungsdatenbank/athletenprofil/8683/Siegfried-Walz.htm"}]
[308,209,"Stiehle","Harald","LAV Stadtwerke Tübingen",1961,55,"m","M55","WÜ",{"$f":"HYPERLINK(myHyperlink(D309))","v":"http://ladv.de/leistungsdatenbank/athletenprofil/62003/Harald-Stiehle.htm"}]
[309,210,"Mezger","Klaus","LAV Stadtwerke Tübingen",1955,61,"m","M60","WÜ",{"$f":"HYPERLINK(myHyperlink(D310))","v":"http://ladv.de/leistungsdatenbank/athletenprofil/5002/Klaus-Mezger.htm"}]
[310,211,"Stuhlinger","Joachim","LAV Stadtwerke Tübingen",1956,60,"m","M60","WÜ",{"$f":"HYPERLINK(myHyperlink(D311))","v":"http://ladv.de/leistungsdatenbank/athletenprofil/7149/Joachim-Stuhlinger.htm"}]
[311,212,"Schmid-Appelrath","Markus","LAV Stadtwerke Tübingen",1956,60,"m","M60","WÜ",{"$f":"HYPERLINK(myHyperlink(D312))","v":"http://ladv.de/leistungsdatenbank/athletenprofil/11437/Markus-Schmid-Appelrath.htm"}]
[312,213,"Bauknecht","Werner","LAV Stadtwerke Tübingen",1953,63,"m","M60","WÜ",{"$f":"HYPERLINK(myHyperlink(D313))","v":"http://ladv.de/leistungsdatenbank/athletenprofil/7069/Werner-Bauknecht.htm"}]
[313,214,"Nikelski","Rolf","Unterländer LG",1964,52,"m","M50","WÜ",{"$f":"HYPERLINK(myHyperlink(D314))","v":"http://ladv.de/leistungsdatenbank/athletenprofil/16930/Rolf-Nikelski.htm"}]
[314,215,"Schütz","Wolfgang","Unterländer LG",1959,57,"m","M55","WÜ",{"$f":"HYPERLINK(myHyperlink(D315))","v":"http://ladv.de/leistungsdatenbank/athletenprofil/1689/Wolfgang-Sch%C3%BCtz.htm"}]
[315,399,"Albrecht","Melanie","Unterländer LG",1996,20,"w","WU23","WÜ",{"$f":"HYPERLINK(myHyperlink(D316))","v":"http://ladv.de/leistungsdatenbank/athletenprofil/15216/Melanie-Albrecht.htm"}]
[316,400,"Götz","Tessa","Unterländer LG",1991,25,"w","F","WÜ",{"$f":"HYPERLINK(myHyperlink(D317))","v":"http://ladv.de/leistungsdatenbank/athletenprofil/19643/Tessa-G%C3%B6tz.htm"}]
[317,401,"Öztürk","Alexandra","Unterländer LG",1980,36,"w","W35","WÜ",{"$f":"HYPERLINK(myHyperlink(D318))","v":"http://ladv.de/leistungsdatenbank/athletenprofil/266067/Alexandra-%C3%96zt%C3%BCrk.htm"}]
[318,402,"Zakrzewski-Heiter","Sylwia","Unterländer LG",1975,41,"w","W40","WÜ",{"$f":"HYPERLINK(myHyperlink(D319))","v":"http://ladv.de/leistungsdatenbank/athletenprofil/144240/Sylwia-Zakrzewski-Heiter.htm"}]
[319,216,"Fahrner","Andreas","Spvgg Weil der Stadt",1973,43,"m","M40","WÜ",{"$f":"HYPERLINK(myHyperlink(D320))","v":"http://ladv.de/leistungsdatenbank/athletenprofil/22515/Andreas-Fahrner.htm"}]
[320,217,"Bajrami","Arsim","SG Weinstadt",1979,37,"m","M35","WÜ",{"$f":"HYPERLINK(myHyperlink(D321))","v":"http://ladv.de/leistungsdatenbank/athletenprofil/102336/Arsim-Bajrami.htm"}]
[321,218,"Lenz","Daniel","SG Weinstadt",1975,{"$f":"2016-F322","v":41},"m","M40","WÜ",{"$f":"HYPERLINK(myHyperlink(D322))","v":"http://ladv.de/leistungsdatenbank/athletenprofil/2727/Daniel-Lenz.htm"}]
[322,219,"Steier","Lukas","LG Welfen",1994,22,"m","MU23","WÜ",{"$f":"HYPERLINK(myHyperlink(D323))","v":"http://ladv.de/leistungsdatenbank/athletenprofil/102311/Lukas-Steier.htm"}]
[323,220,"Weber","Hubert","LG Welfen",1949,67,"m","M65","WÜ",{"$f":"HYPERLINK(myHyperlink(D324))","v":"http://ladv.de/leistungsdatenbank/athletenprofil/123303/Hubert-Weber.htm"}]
[324,403,"Hoffmann","Brigitte","LG Welfen",1957,59,"w","W55","WÜ",{"$f":"HYPERLINK(myHyperlink(D325))","v":"http://ladv.de/leistungsdatenbank/athletenprofil/23005/Brigitte-Hoffmann.htm"}]
[325,404,"Olma","Irmgard","LG Welfen",1948,68,"w","W65","WÜ",{"$f":"HYPERLINK(myHyperlink(D326))","v":"http://ladv.de/leistungsdatenbank/athletenprofil/2374/Irmgard-Olma.htm"}]
[326,221,"Hartmaier","Bernhard","SV Winnenden",1995,21,"m","MU23","WÜ",{"$f":"HYPERLINK(myHyperlink(D327))","v":"http://ladv.de/leistungsdatenbank/athletenprofil/121229/Bernhard-Hartmaier.htm"}]
[327,222,"Späth","Oliver","TV Zell a.N.",1991,25,"m","M","WÜ",{"$f":"HYPERLINK(myHyperlink(D328))","v":"http://ladv.de/leistungsdatenbank/athletenprofil/247049/Oliver-Sp%C3%A4th.htm"}]
[328,223,"Oliver","Ruben","Schweiz",1976,40,"m","M","Schweiz",{"$f":"HYPERLINK(myHyperlink(D329))","v":""}]
[329,224,"Berni","Marcel","Schweiz",1988,28,"m","M","Schweiz",{"$f":"HYPERLINK(myHyperlink(D330))","v":""}]
[330,225,"Rüthemann","Christoph","Schweiz",1987,29,"m","M","Schweiz",{"$f":"HYPERLINK(myHyperlink(D331))","v":""}]
[331,226,"Schüpbach","Kaspar","Schweiz",1981,35,"m","M","Schweiz",{"$f":"HYPERLINK(myHyperlink(D332))","v":""}]
[332,227,"Dankers","Heinz","TB Hamburg Eilbeck",1960,56,"m","M55","HH",{"$f":"HYPERLINK(myHyperlink(D333))","v":""}]